Cogmind - Beta 14 *** ADVENTURER MODE // 2025.03.21 @ 18:29:53 // Winter2019/RPGLIKE Player: Gallgagger Result: Self-destructed Performance ------------- Evolutions (4) 2000 Regions Visited (10) 2000 Robots Destroyed (313) 1565 Value Destroyed (12209) 12209 Prototype IDs (227) 4540 Alien Tech Used (0) 0 Bonus (5010) 5010 TOTAL SCORE: 27324 Bonus ------- High Alert Combat Kills 1454 Follower Combat Kills 487 Met Data Miner 300 Used Data Conduit 3000 Friendly Fire -231 Cogmind --------- Core Integrity 395/2450 Matter 300/300 Energy 380/380 System Corruption 6% Temperature Cool (0) Movement Rolling (51) Location -5/Proximity Caves Parts ------- > --- POWER (2) -------- Angular Momentum Engine Meta Core > --- PROPULSION (3) --- Wheel (fused) Armored Huge Wheel > --- UTILITY (8) ------ Gravity Neutralizer Rocket Booster Improved Terrain Scanner Advanced Melee Analysis Suite Advanced Melee Analysis Suite Weapon Mount Actuator Array > --- WEAPON (3) ------- Powered Hammer Scythe Great Axe (fused) > --- INVENTORY (2) ---- CPS Tube (2) CPS Tube (2) Peak State ------------ > --- POWER ------------ Makeshift Power Source Meta Core > --- PROPULSION ------- Tri-treads Arachnoskeleton > --- UTILITY ---------- High-capacity Matter Pod Siege Articulator Siege Articulator Seismic Detector Makeshift Medium Armor Plating Makeshift Medium Armor Plating Experimental Recalibrator > --- WEAPON ----------- Siege Cannon CPS Tube > --- INVENTORY -------- CPS Tube CPS Tube [Rating: 108] Favorites ----------- Power Meta Core Engine Makeshift Power Source Power Core Meta Core Propulsion Arachnoskeleton Treads Tri-treads Leg Arachnoskeleton Wheel Wheel Hover Unit Hover Unit Utility Seismic Detector Device Seismic Detector Storage High-capacity Matter Pod Processor Salvage Targeting Computer Protection Improved Light Armor Plating Weapon Spread Laser Energy Gun Spread Laser Energy Cannon Heavy Particle Cannon Ballistic Gun Gauss Rifle Ballistic Cannon Siege Cannon Special Weapon CPS Tube Impact Weapon Powered Hammer Slashing Weapon Scythe Build | -11 -10 -10 -8 -8 -8 -8 -6 -6 -6 -5 ------- Run | Yrd Mat Sub Mat Sto Rec Scr Fac Low Dat Pro Slots Evolved 12 | 4 2 2 3 . . . 1 . . . Power 1 | 1 . . . . . . . . . . Propulsion 2 | 1 1 . . . . . . . . . Utility 7 | 1 . 2 3 . . . 1 . . . Weapon 2 | 1 1 . . . . . . . . . Parts Attached 137 | 6 11 18 27 6 2 41 26 . . . Power 10 | 2 1 2 . . . . 5 . . . Engine 9 | 2 1 1 . . . . 5 . . . Core 1 | . . 1 . . . . . . . . Reactor . | . . . . . . . . . . . Propulsion 20 | 2 4 6 . . . 7 1 . . . Treads 2 | . . . . . . 2 . . . . Leg 1 | . . 1 . . . . . . . . Wheel 8 | 2 . . . . . 5 1 . . . Hover 9 | . 4 5 . . . . . . . . Flight . | . . . . . . . . . . . Utility 55 | . 3 2 15 . . 18 17 . . . Device 24 | . 3 . 5 . . 8 8 . . . Storage 3 | . . . . . . 3 . . . . Processor 7 | . . . 2 . . 1 4 . . . Hackware . | . . . . . . . . . . . Protection 21 | . . 2 8 . . 6 5 . . . Artifact . | . . . . . . . . . . . Weapon 52 | 2 3 8 12 6 2 16 3 . . . Energy Gun 24 | 2 3 3 7 4 1 4 . . . . Energy Cannon 4 | . . . 1 . 1 2 . . . . Ballistic Gun 12 | . . 5 4 2 . 1 . . . . Ballistic Cannon 2 | . . . . . . 2 . . . . Launcher . | . . . . . . . . . . . Special Weapon 2 | . . . . . . 2 . . . . Impact Weapon 2 | . . . . . . . 2 . . . Slashing Weapon 6 | . . . . . . 5 1 . . . Piercing Weapon . | . . . . . . . . . . . Special Melee Weapon . | . . . . . . . . . . . Unidentified Prototypes 12 | . . 2 1 4 . 3 2 . . . Corrupted Parts 1 | . 1 . . . . . . . . . System Corruption 3 | . 3 . . . . . . . . . Parts Lost 9 | . 1 . 1 . . . 6 . 1 . Power 3 | . 1 . . . . . 2 . . . Propulsion 1 | . . . . . . . 1 . . . Utility 4 | . . . 1 . . . 2 . 1 . Weapon 1 | . . . . . . . 1 . . . Highest Loss Streak 1 | . 1 . 1 . . . 1 . 1 . To Critical Strikes . | . . . . . . . . . . . Average Slot Usage (%) 67 | . 82 61 53 60 60 64 89 93 92 . Engine 6 | . 18 9 4 4 4 4 5 6 6 . Core 4 | . . 3 4 4 4 4 6 6 6 . Treads 1 | . . . . . . 5 . . . . Leg 3 | . . 3 4 4 4 3 . . . . Wheel 3 | . 5 . . . . 1 11 12 12 . Hover 2 | . 20 5 . . . . . . . . Device 18 | . 12 13 12 19 19 19 29 31 31 . Processor 2 | . . . 2 4 4 1 9 12 12 . Protection 6 | . . 3 6 9 9 9 6 6 5 . Energy Gun 7 | . 25 15 9 3 4 1 . . . . Ballistic Gun 2 | . . 4 5 9 7 . . . . . Slashing Weapon 2 | . . . . . . . 13 12 12 . Peak Build Rating 108 | 6 15 53 70 70 70 108 74 72 72 . Average Rating 62 | 4 8 41 56 69 69 87 67 72 71 . On Entrance 50 | . 6 15 53 70 70 69 62 72 72 69 Naked Turns . | . . . . . . . . . . . Heaviest Build 66 | 13 21 40 40 31 33 66 50 45 45 . Greatest Support 87 | 26 26 55 55 55 55 87 55 55 55 . Greatest Overweight (x) 2 | . 1 1 . . . 2 1 . . . Average Overweight (x) . | . . . . . . . . . . . Largest Inventory Capacity 2 | . 2 2 2 2 2 2 2 2 2 . Average Capacity 1 | . . 2 2 2 2 2 2 2 2 . Most Carried 2 | . 2 2 2 2 2 2 2 2 2 . Average Carried 1 | . . 1 2 2 2 1 1 2 2 . Final Capacity 2 | . 2 2 2 2 2 2 2 2 2 2 Final Carried 2 | . 2 2 2 2 2 2 2 2 2 2 Class Distribution -------------------- 26% | Hacker-Skirmisher 18% | Hacker-Gladiator 14% | Scavenger-Gunner 13% | Commander-Gunner 11% | Hacker-Gunner 8% | Hacker-Mutant 5% | Scavenger-Tank Dominant Class ---------------- Hacker-Mutant | -10/Materials Hacker-Skirmisher | -10/Subcaves Hacker-Skirmisher | -8/Materials Hacker-Gunner | -8/Storage Commander-Gunner | -8/Recycling Scavenger-Gunner | -8/Scraptown Hacker-Gladiator | -6/Factory Hacker-Gladiator | -6/Lower Caves Hacker-Gladiator | -6/Data Miner Hacker-Gladiator | -5/Proximity Caves Resources | -11 -10 -10 -8 -8 -8 -8 -6 -6 -6 -5 ----------- Run | Yrd Mat Sub Mat Sto Rec Scr Fac Low Dat Pro Matter Collected 7587 | 260 134 354 797 764 100 4823 345 10 . . Remotely . | . . . . . . . . . . . Salvage Created 13690 | . 993 533 2388 2420 549 4219 2527 61 . . Parts 764 | . 68 40 117 133 23 257 123 3 . . Haulers Intercepted 15 | . 1 . 5 5 . . 4 . . . Recyclers Shooed 4 | . . . 1 . 1 . 2 . . . Parts Field Recycled . | . . . . . . . . . . . Retrieved Matter . | . . . . . . . . . . . Parts Self-Destructed 26 | . . 20 . . . 3 . 3 . . Prevented . | . . . . . . . . . . . Kills | -11 -10 -10 -8 -8 -8 -8 -6 -6 -6 -5 ------- Run | Yrd Mat Sub Mat Sto Rec Scr Fac Low Dat Pro Combat Hostiles Destroyed 293 | . 27 29 38 40 3 113 42 1 . . Melee 38 | . . . . . . 1 36 1 . . Guns 134 | . 25 29 37 39 3 1 . . . . Cannons 112 | . . . . . . 111 1 . . . AOE 4 | . 2 . 1 1 . . . . . . Classes Destroyed 30 | . 6 3 5 2 2 11 1 . . . Worker 3 | . 1 . . . . . 2 . . . Builder 5 | . . . 2 1 1 . 1 . . . Tunneler 4 | . 1 . 1 . . . 2 . . . Hauler 15 | . 1 . 5 5 . . 4 . . . Recycler 6 | . . . 1 . 5 . . . . . Mechanic 2 | . . . . 2 . . . . . . Operator 4 | . . . 2 . . . 2 . . . Turret 3 | . . 2 . . . 1 . . . . Watcher 14 | . 3 . 4 2 . . 5 . . . Swarmer 26 | . 6 9 3 3 . . 5 . . . Grunt 85 | . 21 . 25 23 . . 16 . . . Brawler 4 | . . . 1 1 . . 2 . . . Protector 3 | . . . . 1 . . 2 . . . Sentry 28 | . . 2 7 12 1 . 6 . . . Demolisher 1 | . . . . . 1 . . . . . Specialist 2 | . . . . . . . 2 . . . Hunter 5 | . . . 2 . . . 3 . . . Programmer 8 | . . . . . 1 . 6 1 . . Subdweller 18 | . . 18 . . . . . . . . Bolteater 8 | . . . . . . 8 . . . . Federalist 7 | . . . . . . 7 . . . . Explorer 7 | . . . . . . 7 . . . . Ranger 9 | . . . . . . 9 . . . . Guru 8 | . . . . . . 8 . . . . Scientist 7 | . . . . . . 7 . . . . Scrapper 49 | . . . . . . 49 . . . . Elite 24 | . . . . . . 24 . . . . Zionite 1 | . . . . . . 1 . . . . Tinkerer 1 | . . . . . . 1 . . . . Butcher 1 | . . . . . . 1 . . . . Best Kill Streak 31 | . 7 3 5 10 3 31 4 1 . . Combat Bots Only 31 | . 7 3 4 9 2 31 4 1 . . Max Kills in Single Turn 3 | . 1 2 2 3 2 3 2 1 . . Gunslinging 1 | . . 1 . 1 . . . . . . Exploded 1 | . 1 . 1 1 . . . . . . Melee 1 | . . . . . . 1 1 1 . . Uniques/NPCs Destroyed 1 | . . . . . . 1 . . . . Triborg (-8/Scraptown) Combat | -11 -10 -10 -8 -8 -8 -8 -6 -6 -6 -5 -------- Run | Yrd Mat Sub Mat Sto Rec Scr Fac Low Dat Pro Hostile Shots Fired 1262 | . 76 128 110 92 2 431 402 7 14 . Missed 369 | . 21 55 32 29 1 89 135 2 5 . Damage Taken 12017 | . 731 772 940 815 11 4457 3895 73 323 . Core 8372 | . 583 543 616 490 8 3081 2768 51 232 . Absorbed by Shields . | . . . . . . . . . . . Reduced by Siege Mode 175 | . . . . . . 175 . . . . Redirected to Core 7155 | . 456 365 522 421 8 2867 2296 26 194 . Ignored by Resistances 3368 | . 215 205 268 233 3 1233 1101 23 87 . Regen/Repaired (Parts) 97 | . 2 . 4 . . . 91 . . . Core Remaining (%) 70 | 100 . 60 . . . 50 . . . . Volleys Fired 628 | . 65 83 96 88 12 282 2 . . . Largest 4 | . 3 3 3 3 3 4 1 . . . Hottest 220 | . 195 195 158 111 111 220 . . . . Shots Fired 1175 | . 136 174 278 263 25 297 2 . . . Gun 886 | . 136 174 278 263 21 14 . . . . Cannon 285 | . . . . . 4 281 . . . . Launcher . | . . . . . . . . . . . Special 4 | . . . . . . 2 2 . . . Kinetic 630 | . . 60 105 176 20 269 . . . . Thermal 491 | . 94 114 165 87 5 26 . . . . Explosive . | . . . . . . . . . . . Electromagnetic 53 | . 42 . 8 . . 1 2 . . . Robot Hit Streak 51 | . 30 44 51 27 7 26 5 . . . Robot Miss Streak 5 | . 2 4 5 3 1 2 . . . . Penetration Max 2 | . . . 1 1 . 2 . . . . Secondary Targets 16 | . 2 7 4 3 . . . . . . Max Gunslinging Chain 2 | . 1 2 1 1 . . . . . . Shots Hit Robots 1149 | . 106 115 224 194 15 253 233 4 5 . Core Hits 696 | . 88 148 162 83 13 111 88 1 2 . Critical Kills 11 | . . 1 2 6 . 1 1 . . . Critical Parts Destroyed 12 | . . . 1 3 . . 8 . . . Critical Strikes 98 | . 1 1 13 11 . 37 34 . 1 . Burn 13 | . . . 10 2 . 1 . . . . Destroy 13 | . . 1 3 9 . . . . . . Blast 35 | . . . . . . 35 . . . . Corrupt 1 | . 1 . . . . . . . . . Smash 10 | . . . . . . 1 9 . . . Sever 26 | . . . . . . . 25 . 1 . Melee Attacks 290 | . . . . . . 5 275 5 5 . Impact 53 | . . . . . . . 51 1 1 . Slashing 237 | . . . . . . 5 224 4 4 . Piercing . | . . . . . . . . . . . Sneak Attacks 17 | . . . . . . 1 13 . 3 . Combat Hostiles 3 | . . . . . . . 3 . . . Follow-up Attacks 77 | . . . . . . 2 70 2 3 . Damage Inflicted 49465 | . 1569 2193 4427 4424 371 26324 9745 171 241 . Guns 12525 | . 1427 2193 4314 4142 269 180 . . . . Cannons 26196 | . . . . . 102 26094 . . . . Explosions 1005 | . 142 . 106 282 . . 475 . . . Melee 9621 | . . . . . . 12 9197 171 241 . Ramming 7 | . . . 7 . . . . . . . Kinetic 30738 | . . 321 1544 2761 248 25864 . . . . Thermal 7882 | . 1068 1872 2734 1381 123 410 294 . . . Explosive 282 | . . . . 282 . . . . . . Electromagnetic 824 | . 501 . 142 . . . 181 . . . Impact 1628 | . . . . . . 38 1546 44 . . Slashing 8104 | . . . . . . 12 7724 127 241 . Piercing . | . . . . . . . . . . . Highest Corruption 13 | . 3 3 . . . 11 13 6 6 . Average Corruption 3 | . 3 3 . . . 3 5 5 6 . Corruption Purged 12 | . . . . . . . 12 . . . Corruption Blocked . | . . . . . . . . . . . Effects 180 | . 15 53 . . . 46 62 2 2 . Message Errors 52 | . 3 16 . . . 14 17 1 1 . Matter Fused 45 | . 5 16 . . . 9 15 . . . Heat Flow Errors 25 | . 3 7 . . . 8 7 . . . Energy Discharges 22 | . 1 4 . . . 8 9 . . . Parts Rejected 3 | . . . . . . 1 2 . . . Parts Fused 2 | . . . . . . . 2 . . . Data Loss (minor) 20 | . 2 5 . . . 5 7 1 . . Data Loss (major) 6 | . . 3 . . . 1 2 . . . Misfires 2 | . . 2 . . . . . . . . Alerts 3 | . 1 . . . . . 1 . 1 . Overload Shots . | . . . . . . . . . . . Overflow Damage 4470 | . 13 . . 40 . 3360 1022 35 . . Projectiles 3360 | . . . . . . 3360 . . . . Explosions 140 | . 13 . . 40 . . 87 . . . Melee 970 | . . . . . . . 935 35 . . Knockbacks 75 | . . . . . . 66 9 . . . Impact 9 | . . . . . . . 9 . . . Kinetic 63 | . . . . . . 63 . . . . Secondary 3 | . . . . . . 3 . . . . Self-Inflicted Damage 120 | . 21 . 12 38 . . 49 . . . Shots 5 | . 1 . 1 1 . . 2 . . . Rammed . | . . . . . . . . . . . Targets Rammed 2 | . . . 2 . . . . . . . Kicked 2 | . . . 2 . . . . . . . Crushed . | . . . . . . . . . . . Highest Temperature 311 | . 311 207 21 40 . 300 239 . . . Average Temperature 73 | . 91 103 6 9 . 105 104 . . . Received Heat Transfer 4664 | . 285 377 558 567 . 1459 1406 12 . . Siege Activations 53 | . . . . . . 53 . . . . Total Turns 698 | . . . . . . 698 . . . . Longest Duration 62 | . . . . . . 62 . . . . Robots Corrupted 5 | . . . . . . . 5 . . . Combat Hostiles 5 | . . . . . . . 5 . . . Parts Fried 3 | . 1 . . . . . 2 . . . Impact Corruptions 23 | . . . . . . 1 22 . . . Robots Melted . | . . . . . . . . . . . Combat Hostiles . | . . . . . . . . . . . Parts Melted 23 | . . 4 11 1 . 6 1 . . . Heat Transferred 13570 | . 1745 2350 5570 2711 185 809 200 . . . Parts Sabotaged . | . . . . . . . . . . . Parts Stolen . | . . . . . . . . . . . Parts Stripped . | . . . . . . . . . . . Power Chain Reactions 6 | . 4 . 1 . . 1 . . . . Alert | -11 -10 -10 -8 -8 -8 -8 -6 -6 -6 -5 ------- Run | Yrd Mat Sub Mat Sto Rec Scr Fac Low Dat Pro Peak Influence 1016 | . 703 . 767 1016 589 . 1005 . . . Initial 334 | . . . 63 232 334 . . . . . Average 450 | . 443 . 352 617 400 . 484 . . . Maximum Alert Level 3 | . 3 . 3 3 2 . 3 . . . Low Security (%) 11 | 100 9 . 20 . . . 15 . . . Level 1 35 | . 26 . 46 23 53 . 30 . . . Level 2 38 | . 61 . 30 42 46 . 30 . . . Level 3 13 | . 3 . 1 33 . . 24 . . . Level 4 . | . . . . . . . . . . . Level 5 . | . . . . . . . . . . . High Security . | . . . . . . . . . . . Max Security . | . . . . . . . . . . . Squads Dispatched 39 | . 11 . 9 7 . . 12 . . . Investigation 27 | . 11 . 8 5 . . 3 . . . Extermination 3 | . . . . . . . 3 . . . Reinforcement 6 | . . . 1 1 . . 4 . . . Assault 3 | . . . . 1 . . 2 . . . Garrison . | . . . . . . . . . . . Intercept . | . . . . . . . . . . . Searches Triggered . | . . . . . . . . . . . Construction Impeded 2 | . . . . 1 . . 1 . . . Haulers Reinforced . | . . . . . . . . . . . Active Scanning Responses . | . . . . . . . . . . . Cargo Convoy Interrupts 1 | . . . . . . . 1 . . . Stealth | -11 -10 -10 -8 -8 -8 -8 -6 -6 -6 -5 --------- Run | Yrd Mat Sub Mat Sto Rec Scr Fac Low Dat Pro Distress Signals 10 | . 2 . 2 3 . . 3 . . . Communications Jammed . | . . . . . . . . . . . Distress Signals . | . . . . . . . . . . . Times Spotted 356 | . 32 36 47 49 3 100 83 2 4 . Peak Tracking Total 9 | . 6 5 4 7 1 9 7 1 4 . Tactical Retreats 27 | . 3 3 . 3 . 4 14 . . . Traps | -11 -10 -10 -8 -8 -8 -8 -6 -6 -6 -5 ------- Run | Yrd Mat Sub Mat Sto Rec Scr Fac Low Dat Pro Traps Triggered 12 | . 2 2 2 1 . . 5 . . . Indirectly . | . . . . . . . . . . . Trap Hack Attempts . | . . . . . . . . . . . Triggered . | . . . . . . . . . . . Disarmed . | . . . . . . . . . . . Reprogrammed 5 | . . . . 5 . . . . . . Reused . | . . . . . . . . . . . Traps Extracted . | . . . . . . . . . . . Installed . | . . . . . . . . . . . Triggered . | . . . . . . . . . . . Machines | -11 -10 -10 -8 -8 -8 -8 -6 -6 -6 -5 ---------- Run | Yrd Mat Sub Mat Sto Rec Scr Fac Low Dat Pro Machines Disabled 60 | . 2 2 6 7 . 32 11 . . . Max in Single Turn 9 | . 2 1 2 1 . 2 9 . . . Garrison Access 4 | . . . 1 1 . . 2 . . . Machines Repaired . | . . . . . . . . . . . Machines Dismantled . | . . . . . . . . . . . Machines Sabotaged 8 | . 2 . 3 3 . . . . . . Overloaded Fab Kills . | . . . . . . . . . . . Hacking | -11 -10 -10 -8 -8 -8 -8 -6 -6 -6 -5 --------- Run | Yrd Mat Sub Mat Sto Rec Scr Fac Low Dat Pro Machines Accessed 71 | . 11 1 13 12 15 1 14 . 4 . Terminals 38 | . 8 . 9 9 6 . 6 . . . Fabricators 1 | . . . . . . . 1 . . . Repair Stations 4 | . 1 . 1 . . . 2 . . . Recycling Units 16 | . 2 . 2 2 9 . 1 . . . Scanalyzers 2 | . . . . . . . 2 . . . Garrison Access 4 | . . . 1 1 . . 2 . . . Total Hacks 217 | . 32 4 43 34 32 1 40 . 31 . Successful 149 | . 23 4 26 27 19 1 18 . 31 . Failed 66 | . 9 . 16 7 12 . 22 . . . Catastrophic 4 | . 2 . . . . . 2 . . . Database Lockouts 2 | . . . 1 . 1 . . . . . Manual 131 | . 30 . 26 17 33 . 25 . . . Terminals 137 | . 29 . 33 31 23 . 21 . . . Fabricators 2 | . . . . . . . 2 . . . Repair Stations 5 | . 1 . 1 . . . 3 . . . Recycling Units 19 | . 2 . 5 2 9 . 1 . . . Scanalyzers 10 | . . . . . . . 10 . . . Garrison Access 8 | . . . 4 1 . . 3 . . . Terminal Hacks 73 | . 8 4 8 15 4 1 2 . 31 . Record 15 | . . 4 . . . . . . 11 . Part Schematic 11 | . . . . . . . . . 11 . Robot Schematic 7 | . . . . 1 . . . . 6 . Robot Analysis 14 | . 5 . 4 2 3 . . . . . Prototype ID Bank 5 | . . . 1 1 . . . . 3 . Open Door 2 | . . . . 2 . . . . . . Level Access Points 1 | . . . . 1 . . . . . . Branch Access Points 2 | . . . . 1 . . 1 . . . Terminal Index 2 | . 1 . . . 1 . . . . . Recycling Unit Index 1 | . 1 . . . . . . . . . Alert Level 4 | . 1 . 2 1 . . . . . . Unreport Threat 4 | . . . 1 3 . . . . . . Locate Traps 1 | . . . . 1 . . . . . . Reprogram Traps 2 | . . . . 2 . . . . . . Hauler Manifests 1 | . . . . . . . 1 . . . Derelict Proto ID Bank 1 | . . . . . . 1 . . . . Fabricator Hacks . | . . . . . . . . . . . Repair Station Hacks 2 | . . . . . . . 2 . . . Scan Component 1 | . . . . . . . 1 . . . Repair 1 | . . . . . . . 1 . . . Recycling Unit Hacks 2 | . . . 2 . . . . . . . Retrieve Components 2 | . . . 2 . . . . . . . Scanalyzer 4 | . . . . . . . 4 . . . Insert Component 2 | . . . . . . . 2 . . . Analyze 2 | . . . . . . . 2 . . . Garrison Access Hacks 4 | . . . 1 1 . . 2 . . . Seal Access 4 | . . . 1 1 . . 2 . . . Unauthorized Hacks 64 | . 15 . 15 11 15 . 8 . . . Terminals 43 | . 12 . 12 9 6 . 4 . . . Botnet 26 | . 6 . 6 6 4 . 4 . . . Disrupt 3 | . . . 2 . 1 . . . . . Operators 1 | . . . . . 1 . . . . . Sabotage 13 | . 6 . 4 3 . . . . . . Fabricators 2 | . . . . . . . 2 . . . Prioritize 1 | . . . . . . . 1 . . . Liberate 1 | . . . . . . . 1 . . . Repair Stations 3 | . 1 . 1 . . . 1 . . . Patch 3 | . 1 . 1 . . . 1 . . . Recycling Units 16 | . 2 . 2 2 9 . 1 . . . Tunnel 16 | . 2 . 2 2 9 . 1 . . . Scanalyzers . | . . . . . . . . . . . Garrison Access . | . . . . . . . . . . . Data Cores Recovered . | . . . . . . . . . . . Used . | . . . . . . . . . . . Hacking Detections 32 | . 5 . 6 7 5 . 9 . . . Full Trace Events 4 | . 2 . 1 1 . . . . . . Feedback Events . | . . . . . . . . . . . Feedback Blocked . | . . . . . . . . . . . Robot Schematics Acquired 7 | . . . . 1 . . . . 6 . Robots Built . | . . . . . . . . . . . Authchips . | . . . . . . . . . . . Time . | . . . . . . . . . . . Total Robot Build Rating . | . . . . . . . . . . . Part Schematics Acquired 12 | . . . . . . . 1 . 11 . Parts Built . | . . . . . . . . . . . Authchips . | . . . . . . . . . . . Time . | . . . . . . . . . . . Total Part Build Rating . | . . . . . . . . . . . Parts Repaired 1 | . . . . . . . 1 . . . Time 53 | . . . . . . . 53 . . . Parts Recycled . | . . . . . . . . . . . Recycled Matter . | . . . . . . . . . . . Retrieved Matter . | . . . . . . . . . . . Retrieved Components 8 | . . . 8 . . . . . . . Parts Scanalyzed 1 | . . . . . . . 1 . . . Part Schematics Acquired 1 | . . . . . . . 1 . . . Parts Damaged 1 | . . . . . . . 1 . . . Bothacking | -11 -10 -10 -8 -8 -8 -8 -6 -6 -6 -5 ------------ Run | Yrd Mat Sub Mat Sto Rec Scr Fac Low Dat Pro Used RIF Installer . | . . . . . . . . . . . Robots Hacked . | . . . . . . . . . . . Non-combat . | . . . . . . . . . . . Combat . | . . . . . . . . . . . Robot Hacks Applied . | . . . . . . . . . . . Relay Couplers Released . | . . . . . . . . . . . Fabnet Peak Effective % . | . . . . . . . . . . . Robots Rewired 13 | . . . . . 13 . . . . . Allies Hacked . | . . . . . . . . . . . Hacks Repelled . | . . . . . . . . . . . Allies | -11 -10 -10 -8 -8 -8 -8 -6 -6 -6 -5 -------- Run | Yrd Mat Sub Mat Sto Rec Scr Fac Low Dat Pro Total Allies 19 | . . . . . 13 . 6 . . . Largest Group 13 | . . . . . 13 13 3 . . . Highest-Rated Group 202 | . . . . . 202 202 93 . . . Highest-Rated Ally 34 | . . . . . 34 34 31 . . . Total Orders 20 | . . . . . 3 17 . . . . STAY 13 | . . . . . 2 11 . . . . FOLLOW 7 | . . . . . 1 6 . . . . Ally Attacks 130 | . . . . . . 79 51 . . . Total Damage 2687 | . . . . . . 1991 696 . . . Kills 24 | . . . . . . 17 7 . . . Allies Corrupted . | . . . . . . . . . . . Allies Melted . | . . . . . . . . . . . Intel | -11 -10 -10 -8 -8 -8 -8 -6 -6 -6 -5 ------- Run | Yrd Mat Sub Mat Sto Rec Scr Fac Low Dat Pro Robot Analysis Total 159 | . 5 . 4 2 3 . . . 145 . Derelict Logs Recovered 2 | . . 2 . . . . . . . . Drone Launches . | . . . . . . . . . . . Drone Recoveries . | . . . . . . . . . . . Exploration | -11 -10 -10 -8 -8 -8 -8 -6 -6 -6 -5 ------------- Run | Yrd Mat Sub Mat Sto Rec Scr Fac Low Dat Pro Turns Passed 14614 | 49 1100 3022 1748 1048 1096 4051 2383 50 67 . Spaces Moved 12775 | 46 1238 2914 1412 762 953 2762 2493 85 110 . Core 1 | 1 . . . . . . . . . . Treads 1030 | . . . . . . 1030 . . . . Legs 6257 | . . 2188 1412 762 953 942 . . . . Wheels 3680 | 45 157 . . . . 790 2493 85 110 . Hover 1807 | . 1081 726 . . . . . . . . Flight . | . . . . . . . . . . . Fastest Speed 45 | 50 52 52 90 90 90 45 51 51 51 . Average Speed 80 | 88 59 85 90 90 90 102 52 51 51 . Slowest Speed 230 | 90 116 116 90 90 90 230 105 51 51 . Overloaded Moves . | . . . . . . . . . . . Propulsion Burnouts . | . . . . . . . . . . . Robots Hopped . | . . . . . . . . . . . Cave-ins Triggered . | . . . . . . . . . . . Exploration Rate (%) 63 | 4 99 95 78 93 97 92 47 11 82 3 Regions Visited 10 Branch Regions 7 Pre-discovered Areas 28 | . 2 1 2 2 9 . 1 . 11 . Known Exits Taken 3 | . . . 1 1 . . 1 . . . Unknown Exits Taken 7 | 1 1 1 . . 1 1 . 1 1 . Scrap Searched 24 | . . 17 . . . 7 . . . . Spaces Dug 13 | . . . . . . 2 11 . . . Terrain Destroyed 227 | . 12 . 2 13 2 146 52 . . . Melee 11 | . . . . . . . 11 . . . Projectile 151 | . . . . 3 2 146 . . . . AOE 65 | . 12 . 2 10 . . 41 . . . Terrain Rammed . | . . . . . . . . . . . Walls Destroyed . | . . . . . . . . . . . Machines Disabled . | . . . . . . . . . . . Actions | -11 -10 -10 -8 -8 -8 -8 -6 -6 -6 -5 --------- Run | Yrd Mat Sub Mat Sto Rec Scr Fac Low Dat Pro Total 15833 | 51 1462 3291 1687 1011 1177 3710 3242 86 116 . Wait 1606 | . 124 235 100 90 143 477 432 . 5 . Move 12765 | 45 1237 2913 1411 761 952 2761 2492 84 109 . Hop . | . . . . . . . . . . . Pick Up 9 | . 1 2 . . . 5 1 . . . Fast Attach 114 | 6 5 12 26 6 2 38 19 . . . Attach 5 | . . 3 . . . 2 . . . . Detach 3 | . . 2 . . . 1 . . . . Swap 18 | . 6 3 1 . . 1 7 . . . Drop 95 | . 2 15 21 6 2 41 8 . . . Fire 628 | . 65 83 96 88 12 282 2 . . . Melee 181 | . . . . . . 3 174 2 2 . Ram . | . . . . . . . . . . . Kick 2 | . . . 2 . . . . . . . Crush . | . . . . . . . . . . . Escape Stasis 8 | . . . . . . . 8 . . . Rewire 62 | . . . . . 62 . . . . . Trap . | . . . . . . . . . . . Miscellaneous 337 | . 22 23 30 60 4 99 99 . . . Route ------- -11/Scrapyard -10/Materials (discovered 5 exits: [*Mat x3] / [*Min] / *Sub) -10/Subcaves (discovered 3 exits: *Mat x2 / *Rec) -8/Materials (discovered 5 exits: *Fac x3 / *Sto x2) -8/Storage (discovered 2 exits: *Fac / *Rec) -8/Recycling (discovered 2 exits: *Fac / *Scr) -8/Scraptown (discovered 2 exits: *Fac x2) -6/Factory (discovered 4 exits: [*Fac x2] / *Low x2) -6/Lower Caves -6/Data Miner -5/Proximity Caves History --------- Turn | Location | Event 1 | -11/Scrapyard | Upgraded with Power slot (x1) 1 | -11/Scrapyard | Upgraded with Propulsion slot (x1) 1 | -11/Scrapyard | Upgraded with Utility slot (x1) 1 | -11/Scrapyard | Upgraded with Weapon slot (x1) 23 | -11/Scrapyard | Discovered new exit (range 14) 50 | -11/Scrapyard | Entered Materials 176 | -10/Materials | Destroyed 7 combat bots 240 | -10/Materials | Reached level 2 241 | -10/Materials | Core integrity fell below 50% 333 | -10/Materials | Discovered new exit (range 13) 372 | -10/Materials | Build established: Hacker-Mutant 425 | -10/Materials | Discovered new exit (range 10) 471 | -10/Materials | Discovered new exit (range 15) 546 | -10/Materials | Discovered new exit (range 14) 671 | -10/Materials | Reached level 3 956 | -10/Materials | Upgraded with Weapon slot (x1) 971 | -10/Materials | Upgraded with Propulsion slot (x1) 1076 | -10/Materials | Reached level 4 1113 | -10/Materials | Discovered new exit (range 10) 1150 | -10/Materials | Entered Subcaves 1192 | -10/Subcaves | Disturbed a concealed Subdweller 1333 | -10/Subcaves | Build established: Hacker-Skirmisher 1334 | -10/Subcaves | Discovered new exit (range 8) 1457 | -10/Subcaves | Learned Materials garrison access intel 1500 | -10/Subcaves | Visited Clippyterm 1502 | -10/Subcaves | Identified exit to Recycling 1502 | -10/Subcaves | Learned location of Extension (-5) 1596 | -10/Subcaves | A swath of the cavern ceiling suddenly collapsed 1684 | -10/Subcaves | A swath of the cavern ceiling suddenly collapsed 1691 | -10/Subcaves | Reached level 5 1852 | -10/Subcaves | Visited 4L-MR0's lab 1860 | -10/Subcaves | Found Prototype Leg 1860 | -10/Subcaves | Identified Arachnoskeleton 1862 | -10/Subcaves | Attached Arachnoskeleton, gained temporary slots: Propulsion x3 1909 | -10/Subcaves | Shifting Twisted Machinery released Sub. Laser 1909 | -10/Subcaves | Shifting Twisted Machinery released Sub. Machine Gun 1956 | -10/Subcaves | Upgraded with Utility slot (x2) 2208 | -10/Subcaves | A Subdweller sparked back to life 2208 | -10/Subcaves | A Subdweller sparked back to life 2208 | -10/Subcaves | A Subdweller sparked back to life 2248 | -10/Subcaves | Found Prototype Power Core 2248 | -10/Subcaves | Identified Meta Core 2250 | -10/Subcaves | Attached Meta Core, gained temporary slots: Propulsion, Utility, Weapon 2291 | -10/Subcaves | Ambushed by Subdwellers from Twisted Machinery 2561 | -10/Subcaves | Discovered new exit (range 10) 3621 | -10/Subcaves | Shifting Twisted Machinery released Sub. Beam Cannon 3642 | -10/Subcaves | Shifting Twisted Machinery released Battle Cannon 3721 | -10/Subcaves | Shifting Twisted Machinery released Piercing Trap 3725 | -10/Subcaves | Shifting Twisted Machinery released Mak. Kinetic Plating 4172 | -10/Subcaves | Entered Materials 4173 | -8/Materials | Identified exit to Storage 4174 | -8/Materials | Loaded intel: 1 garrison access location 4174 | -8/Materials | Reached level 6 4174 | -8/Materials | Reached level 7 4233 | -8/Materials | Discovered exit to Storage (range 16) 4354 | -8/Materials | Discovered new exit (range 7) 4644 | -8/Materials | Reached level 8 4823 | -8/Materials | Central database locked down 4895 | -8/Materials | Discovered new exit (range 15) 4989 | -8/Materials | Reached level 9 5029 | -8/Materials | Upgraded with Utility slot (x1) 5209 | -8/Materials | Discovered new exit (range 11) 5310 | -8/Materials | Build established: Scavenger-Tank 5475 | -8/Materials | Reached level 10 5611 | -8/Materials | Upgraded with Utility slot (x2) 5744 | -8/Materials | Reached level 11 5885 | -8/Materials | Build established: Hacker-Gunner 5920 | -8/Materials | Entered Storage 6063 | -8/Storage | Identified exit to Factory 6063 | -8/Storage | Reached level 12 6565 | -8/Storage | Reached level 13 6708 | -8/Storage | Destroyed 9 combat bots 6720 | -8/Storage | First assault squad dispatched 6800 | -8/Storage | Destroyed 7 combat bots 6858 | -8/Storage | Used back door to open Recycling access 6968 | -8/Storage | Entered Recycling 6969 | -8/Recycling | Joined Warlord attack on 0b10 via Recycling 7076 | -8/Recycling | Reached level 14 7192 | -8/Recycling | Discovered new exit (range 7) 7414 | -8/Recycling | Build established: Commander-Gunner 7987 | -8/Recycling | Scanned before Scraplab entrance 8006 | -8/Recycling | Discovered new exit (range 10) 8007 | -8/Recycling | Entered Scraplab 8064 | -8/Recycling | Entered Scraptown 8064 | -8/Scraptown | Accompanied by 13 allies 8093 | -8/Scraptown | Visited Cyclists 8107 | -8/Scraptown | Visited Junk Repository 8133 | -8/Scraptown | Visited Spacefarers 8149 | -8/Scraptown | Visited Scrapoid Research Area 8167 | -8/Scraptown | Visited Assassins FH 8183 | -8/Scraptown | Visited The Evicted 8197 | -8/Scraptown | Visited CR-KLE's Repair Center 8245 | -8/Scraptown | Discovered new exit (range 11) 9063 | -8/Scraptown | Attacked by Scraptown defenders 9066 | -8/Scraptown | Allies destroyed Triborg 9071 | -8/Scraptown | Found Tri-treads 9087 | -8/Scraptown | Found Siege Articulator 9093 | -8/Scraptown | Found Siege Articulator 9101 | -8/Scraptown | Found Prototype Ballistic Cannon 9101 | -8/Scraptown | Identified Siege Cannon 9156 | -8/Scraptown | Lost 11 allies 9259 | -8/Scraptown | Found Prototype Device 9259 | -8/Scraptown | Identified Exp. Recalibrator 9635 | -8/Scraptown | Build established: Scavenger-Gunner 10035 | -8/Scraptown | Core integrity fell below 50% 10078 | -8/Scraptown | Destroyed 11 combat bots 10165 | -8/Scraptown | Core integrity fell below 20% 10266 | -8/Scraptown | Destroyed 31 combat bots 10332 | -8/Scraptown | Destroyed 8 combat bots 10381 | -8/Scraptown | Destroyed 8 combat bots 10798 | -8/Scraptown | Visited Abandonware Association 10821 | -8/Scraptown | Visited DA-N13 Charitable Foundation 10835 | -8/Scraptown | Found DCF Scrap (28 items) 10862 | -8/Scraptown | Visited Derelict Rescue Squad 10883 | -8/Scraptown | Visited Infowarlord's Domain 10902 | -8/Scraptown | Visited Modified Component R&D 10971 | -8/Scraptown | Visited Science Testing Area 11437 | -8/Scraptown | Visited Curators Association 11473 | -8/Scraptown | Visited Science Guys 11765 | -8/Scraptown | Found Voltaic Drivehammer 11880 | -8/Scraptown | System corruption reached 10% 12087 | -8/Scraptown | Discovered new exit (range 3) 12090 | -8/Scraptown | System corruption cleaned by C-Scrubber 12115 | -8/Scraptown | Entered Factory 12117 | -6/Factory | Reached level 15 12129 | -6/Factory | Core integrity fell below 50% 12232 | -6/Factory | Discovered new exit (range 19) 12268 | -6/Factory | Spotted B-75 Beast 12272 | -6/Factory | System corruption reached 10% 12281 | -6/Factory | Build established: Hacker-Gladiator 12332 | -6/Factory | Allied Derelicts emerged from ambush trap array 12339 | -6/Factory | Reached level 16 12451 | -6/Factory | Discovered new exit (range 18) 12744 | -6/Factory | Repaired Broken CPS Tube 12918 | -6/Factory | Lost 3 allies 12970 | -6/Factory | Upgraded with Utility slot (x1) 13024 | -6/Factory | Reached level 17 13326 | -6/Factory | Cargo convoy interrupted 13515 | -6/Factory | First assault squad dispatched 13552 | -6/Factory | Identified exit to Lower Caves 13773 | -6/Factory | Reached level 18 14126 | -6/Factory | Lost 3 allies 14263 | -6/Factory | Discovered new exit (range 20) 14498 | -6/Factory | Entered Lower Caves 14500 | -6/Lower Caves | Reached level 19 14513 | -6/Lower Caves | A Derelict revealed a hidden shortcut to meet someone special 14541 | -6/Lower Caves | Spotted B-75 Beast 14548 | -6/Lower Caves | Entered Data Miner 14548 | -6/Data Miner | Discovered new exit (range 6) 14556 | -6/Data Miner | Met Data Miner 14569 | -6/Data Miner | Learned location of Section 7 (-2) 14569 | -6/Data Miner | Acquired the access code to Warlord's prototype stash 14578 | -6/Data Miner | Received God Mode back door access code from Data Miner 14591 | -6/Data Miner | Interfaced with the Data Conduit 14610 | -6/Data Miner | Core integrity fell below 20% 14615 | -6/Data Miner | Entered Proximity Caves 14615 | -5/Proximity Caves | Self-destructed Last Messages --------------- 14587_ Sneak attack on Data Miner. 14587_ Powered Hammer follow-up attack on Data Miner. 14587_ Data Miner disappears through a trap door. 14591_ Interfacing with system... Downloaded 145 analysis records. Downloaded 745 prototype IDs. Downloaded central machine database. Downloaded 10 destinations. Downloaded encryption format records. Connection remotely terminated. 14603_ Enhanced Grunt Enh. Flexi-carbon Leg severed. 14603_ Scythe follow-up attack on Enhanced Grunt. 14609_ Imp. Light Armor Plating destroyed. 14610_ AFXSQZU>AGR<0UFN